bitfinex/quotes_ETHUSD_20241119
["timestamp","ask_amount","ask_price","bid_price","bid_amount"]
[1732009699469,0.8829,3108.8,3108.3,3.21713]
[1732009699677,4.09958,3108.8,3108.3,3.21711]
[1732009699902,0.8829,3108.8,3108.1,3.21731]
[1732009700213,0.8829,3108.8,3108.3,3.21717]
[1732009700512,0.8829,3108.8,3108.5,3.21697]
[1732009700811,0.8829,3108.8,3107.8,1.1426951]
[1732009700812,0.9236,3109.2,3108.7,3.21672]
[1732009700963,0.9236,3109.2,3108.4,0.5061]
[1732009701167,3.21597,3109.5,3108.4,0.5061]
[1732009701168,4.13957,3109.5,3108.4,0.5061]
[1732009701369,4.13957,3109.5,3108.8,6.43319]
[1732009701610,3.21611,3109.4,3108.8,3.21658]
[1732009701921,4.5040664,3109.5,3108.6,3.21681]
[1732009702067,3.21621,3109.3,3108.6,3.21681]
[1732009702267,3.68087529,3109.4,3108.8,3.21667]
[1732009702483,4.13957,3109.5,3108.8,3.21667]
[1732009702484,4.13957,3109.5,3108.9,3.21655]
[1732009702777,4.13957,3109.5,3108.8,3.21667]
[1732009703082,3.21622,3109.3,3108.6,6.43364]
[1732009703292,3.21622,3109.3,3108.6,3.21681]
[1732009703475,0.9236,3109.5,3109.0,3.21641]
[1732009703677,3.21608,3109.4,3108.4,3.5061]
[1732009704192,3.21616,3109.3,3108.6,3.21678]
[1732009704410,3.21616,3109.3,3108.4,3.5061]
[1732009704411,4.56790165,3109.5,3108.8,3.21657]
[1732009704604,3.21606,3109.4,3108.8,6.43316]
[1732009704770,0.9236,3109.5,3109.0,3.21645]
[1732009704973,4.13958,3109.5,3109.0,3.21645]
[1732009705513,3.21618,3109.3,3108.8,3.21657]
[1732009705812,3.21618,3109.3,3108.7,3.2167]
[1732009706918,3.21645,3109.1,3108.5,3.21695]
[1732009707081,0.8722,3109.2,3107.8,1.1409951]
[1732009707414,0.8722,3108.7,3108.0,3.21742]
[1732009707910,0.8722,3108.7,3107.8,4.3586351]
[1732009707911,3.21706,3108.5,3107.8,4.3586351]
[1732009708217,3.21717,3108.4,3107.8,4.3586051]
[1732009708441,0.9274,3108.4,3107.8,3.2177]
[1732009708733,4.14449,3108.4,3107.8,3.2177]
[1732009709286,0.29615896,3108.3,3107.9,3.21756]
[1732009709484,4.14451,3108.4,3107.7,3.2178]
[1732009709716,4.14451,3108.4,3107.7,3.21774]
[1732009709717,0.29619268,3108.3,3107.7,3.21774]
[1732009710026,3.21757,3108.0,3107.5,3.0]
[1732009710231,0.9189,3107.9,3107.5,3.0]
[1732009710599,0.9189,3107.9,3107.5,6.218]
[1732009710934,0.9189,3107.9,3107.2,0.5061]
[1732009710935,3.0,3108.9,3107.7,3.21781]
[1732009711086,0.9189,3108.2,3107.7,3.21781]
[1732009711293,0.29619238,3108.1,3107.7,3.21781]
[1732009711588,0.9189,3108.2,3107.7,3.21781]
[1732009712027,0.9189,3108.2,3107.9,3.21757]
[1732009712806,4.13622,3108.2,3107.5,3.21796]
[1732009712990,4.13622,3108.2,3107.6,6.21788]
[1732009713336,4.13622,3108.2,3107.6,3.0]
[1732009713550,4.13622,3108.2,3107.6,6.21791]
[1732009713551,3.51385914,3108.1,3107.6,6.21791]
[1732009713859,3.21756,3108.0,3107.6,3.0]
[1732009714067,3.21761,3107.9,3107.4,3.0]
[1732009714219,3.21741,3108.1,3107.4,6.21808]
[1732009714563,0.29646633,3108.0,3107.4,6.21808]
[1732009714757,3.21741,3108.1,3107.4,3.0]
[1732009714976,0.29645546,3108.0,3107.4,3.0]
[1732009715133,0.29645546,3107.9,3107.4,3.0]
[1732009715317,3.21764,3107.9,3107.4,3.0]
[1732009715659,3.21764,3107.9,3107.4,6.21808]
[1732009715975,3.21785,3107.7,3107.2,0.5061]
[1732009716258,0.9293,3107.6,3107.1,3.21836]
[1732009717034,0.9293,3107.6,3107.1,6.43674]
[1732009717246,4.14722,3107.6,3107.1,3.21836]
[1732009718945,0.9293,3107.6,3107.1,3.21836]
[1732009719258,0.9293,3107.6,3107.2,3.21827]
[1732009719470,0.9293,3107.6,3107.1,3.21836]
[1732009719471,0.9293,3107.6,3107.3,3.21815]
[1732009719786,0.9293,3107.6,3107.1,3.21836]
[1732009720118,3.21802,3107.5,3106.7,1.16556442]
[1732009720316,0.9007,3107.1,3106.6,3.21894]
[1732009720961,0.9007,3107.1,3106.8,3.21873]
[1732009721166,0.9007,3107.1,3106.8,3.21868]
[1732009721398,0.8936,3107.3,3106.9,3.21857]
[1732009721954,0.8936,3107.3,3106.7,3.21876]
[1732009722603,3.21837,3107.2,3106.6,3.21889]
[1732009722787,3.21837,3107.2,3106.4,4.35291955]
[1732009722788,3.21852,3107.1,3106.4,4.35291955]
[1732009722992,3.21852,3107.1,3105.6,5.29]
[1732009722993,3.21877,3106.8,3106.2,3.2193]
[1732009723483,3.21877,3106.8,3106.2,6.43861]
[1732009723686,0.9192,3107.0,3106.2,3.2193]
[1732009723993,0.9192,3107.0,3106.1,3.72548]
[1732009723994,3.21879,3106.8,3106.1,3.72548]
[1732009724402,3.21879,3106.8,3106.2,6.21935]
[1732009725286,4.13774,3107.0,3106.3,3.21918]
[1732009725462,4.13774,3107.0,3106.3,6.43838]
[1732009725666,3.21875,3106.8,3106.3,3.21918]
[1732009726066,6.43756,3106.8,3106.2,3.0]
[1732009726493,3.21875,3106.8,3106.2,3.0]
[1732009726996,3.21875,3106.8,3106.2,6.21927]
[1732009727203,3.21885,3106.7,3106.2,3.0]
[1732009727366,3.21907,3106.5,3106.0,3.0]
[1732009727707,0.92,3106.4,3105.8,3.21977]
[1732009728198,3.21926,3106.3,3105.7,3.21985]
[1732009728365,4.13917,3106.4,3105.8,3.21971]
[1732009728693,0.92,3106.4,3105.7,3.21981]
[1732009728853,4.13918,3106.4,3105.8,3.21971]
[1732009729297,0.92,3106.4,3105.9,3.21967]
[1732009729752,4.13791,3106.7,3106.1,3.21939]
[1732009729951,4.13791,3106.7,3105.6,3.72608]
[1732009730191,4.13791,3106.7,3106.1,3.21938]
[1732009730499,3.219,3106.6,3105.6,3.72608]
[1732009730696,3.219,3106.6,3106.0,3.21951]
[1732009733488,0.9379,3106.9,3106.1,3.72499]
[1732009733691,4.15657,3106.9,3106.3,3.21921]
[1732009733915,4.572217,3106.9,3106.3,3.21919]
[1732009734105,4.572217,3106.9,3106.4,3.21913]
[1732009734787,1.353547,3106.9,3106.5,3.219]
[1732009734999,0.9379,3106.9,3106.4,3.21913]
[1732009735177,0.9379,3106.9,3106.5,3.21903]
[1732009735385,0.9175,3107.3,3106.8,3.21874]
[1732009735577,0.9175,3107.3,3106.7,3.21883]
[1732009735578,3.2184,3107.2,3106.7,3.21883]
[1732009735820,3.21846,3107.1,3106.6,3.21894]
[1732009736124,4.13573,3107.3,3106.8,3.21868]
[1732009737990,0.9175,3107.3,3106.8,3.21868]
[1732009738411,4.13578,3107.3,3106.8,3.21868]
[1732009739630,4.13578,3107.3,3106.6,6.43775]
[1732009739926,3.21844,3107.1,3106.6,3.21885]
[1732009740093,3.21844,3107.1,3106.4,3.2191]
[1732009740319,0.9275,3107.0,3106.4,3.2191]
[1732009740518,4.1461,3107.0,3106.4,3.2191]
[1732009740714,0.9275,3107.0,3106.4,3.21909]
[1732009741040,0.9275,3107.0,3106.1,3.72499]
[1732009741041,0.9275,3107.0,3106.7,3.21882]
[1732009741240,0.9275,3107.0,3106.8,3.21871]
[1732009741446,0.9275,3107.0,3106.9,3.21864]
[1732009741753,0.8775,3107.2,3106.7,6.43759]
[1732009742048,0.8775,3107.2,3106.4,3.2191]
[1732009742225,1.16382268,3107.1,3106.7,3.21876]
[1732009742406,0.8674,3107.1,3106.8,3.21871]
[1732009743737,0.8674,3107.1,3106.7,3.21882]
[1732009743945,0.8674,3107.1,3106.8,3.21868]
[1732009744145,3.539262,3108.0,3106.9,3.21863]
[1732009744146,0.8674,3107.5,3106.9,3.21863]
[1732009744350,0.8674,3107.3,3106.3,0.5056]
[1732009744657,0.8674,3107.3,3106.6,3.21889]
[1732009744658,3.51493698,3107.2,3106.6,3.21889]
[1732009744848,3.51504698,3107.1,3106.6,3.21889]
[1732009745014,4.08568,3107.3,3106.7,3.21879]
[1732009745221,0.2966541,3107.2,3106.3,0.5056]
[1732009745461,0.2966541,3107.1,3106.8,3.21865]
[1732009745750,0.8674,3107.3,3106.9,3.21864]
[1732009745950,0.29673741,3107.2,3106.9,3.21864]
[1732009746253,0.8674,3107.3,3106.8,3.21868]
[1732009746441,0.2967886,3107.2,3107.0,3.21852]
[1732009746617,0.8674,3107.3,3106.4,3.21911]
[1732009746618,0.8674,3107.3,3106.9,3.21854]
[1732009746945,0.8674,3107.3,3106.6,0.5056]
[1732009747150,3.21774,3107.8,3107.2,3.21833]
[1732009747452,1.45756721,3107.7,3107.3,3.21822]
[1732009747658,0.29681667,3107.6,3107.4,3.21809]
[1732009747875,0.9233,3107.7,3107.3,6.43635]
[1732009748025,0.29688243,3107.6,3107.4,3.21803]
[1732009748367,0.29688243,3107.6,3107.3,3.21813]
[1732009748368,0.9233,3107.7,3107.3,3.21813]
[1732009748572,0.29693335,3107.6,3107.3,3.21813]
[1732009748768,0.9233,3107.7,3107.3,3.21813]
[1732009749068,0.29696968,3107.6,3107.4,3.21811]
[1732009749272,0.9233,3107.7,3107.4,3.21811]
[1732009749425,0.29701378,3107.6,3107.5,3.21798]
[1732009750222,0.8926,3108.0,3107.8,3.21768]
[1732009750431,0.29699107,3107.9,3107.8,3.21768]
[1732009750755,0.29699107,3107.9,3107.6,3.21784]
[1732009751056,0.29700183,3107.8,3107.7,3.21775]
[1732009751255,0.8926,3108.0,3107.7,3.21775]
[1732009751489,0.29695806,3107.9,3107.7,3.21775]
[1732009751767,0.8926,3108.0,3107.7,3.21775]
[1732009751952,0.29697637,3107.9,3107.8,3.21771]
[1732009752328,0.8926,3108.0,3107.8,3.21771]
[1732009755136,0.29683356,3107.9,3107.5,3.21801]
[1732009755360,0.44068936,3107.9,3107.1,0.5056]
[1732009755611,0.9214,3107.5,3107.0,3.21853]
[1732009755900,0.29675464,3107.4,3107.0,3.21853]
[1732009756100,3.51503464,3107.3,3106.7,3.21878]
[1732009756302,3.21818,3107.4,3106.8,3.21867]
[1732009756461,0.29675671,3107.3,3106.8,3.21867]
[1732009756657,3.21818,3107.4,3106.8,3.21867]
[1732009756885,0.29674759,3107.3,3106.8,3.21867]
[1732009757201,3.953931,3107.4,3106.8,3.21867]
[1732009757499,0.8592,3107.1,3106.4,3.21916]
[1732009757803,4.07763,3107.1,3106.6,3.2189]
[1732009759008,3.21855,3107.0,3106.4,3.21909]
[1732009759507,3.21855,3107.0,3106.4,6.43818]
[1732009759801,3.21855,3107.0,3106.5,3.21903]
[1732009760305,3.21868,3106.9,3106.3,3.21916]
[1732009760607,3.21855,3107.0,3106.4,3.21914]
[1732009761100,0.8463,3106.7,3106.2,3.2193]
[1732009761597,0.8463,3106.7,3105.9,3.21961]
[1732009761798,0.8463,3106.7,3106.3,3.21918]
[1732009761955,0.8463,3106.7,3106.5,3.21898]
[1732009762469,0.9203,3107.1,3106.6,3.21886]
[1732009762657,0.29690368,3107.0,3106.7,3.21883]
[1732009762860,4.13874,3107.1,3106.5,6.43797]
[1732009763193,0.29691439,3107.0,3106.5,6.43796]
[1732009763359,4.13874,3107.1,3106.6,3.21893]
[1732009763556,0.2969788,3107.0,3106.7,3.21878]
[1732009763896,4.13878,3107.1,3106.6,3.21893]
[1732009764197,0.29695686,3107.0,3106.6,3.21893]
[1732009764359,0.8996,3107.1,3106.2,3.21936]
[1732009764558,0.2969922,3107.0,3106.5,3.21896]
[1732009764774,4.11808,3107.1,3106.5,3.21896]
[1732009764985,0.29696263,3107.0,3106.5,6.43795]
[1732009765156,4.11808,3107.1,3106.6,3.21894]
[1732009765353,0.29698269,3107.0,3106.6,3.21894]
[1732009765606,4.11808,3107.1,3106.6,3.21894]
[1732009765753,0.29698846,3107.0,3106.6,3.21894]
[1732009765957,4.11808,3107.1,3106.6,3.21894]
[1732009766201,0.29699022,3107.0,3106.6,3.21894]
[1732009766404,4.11808,3107.1,3106.6,3.21894]
[1732009766608,0.2969766,3107.0,3106.6,3.21894]
[1732009766763,0.8497,3107.6,3106.7,3.71615]
[1732009767097,0.29699643,3107.5,3107.1,3.21838]
[1732009767396,0.8497,3107.6,3107.1,3.21838]
[1732009767397,0.8497,3107.6,3107.1,6.43675]
[1732009767700,0.29705058,3107.5,3107.2,3.21832]
[1732009767901,0.8497,3107.6,3107.1,3.21837]
[1732009768109,0.29708003,3107.5,3107.1,3.21837]
[1732009768316,0.8497,3107.6,3107.1,3.21837]
[1732009768625,0.29713496,3107.5,3107.1,3.21837]
[1732009768761,0.8497,3107.6,3107.1,3.21837]
[1732009769110,0.29713659,3107.5,3107.1,3.21837]
[1732009769266,0.8497,3107.6,3107.2,3.21832]
[1732009769591,0.29713176,3107.5,3107.2,3.21825]
[1732009769791,0.8497,3107.6,3106.9,3.21861]
[1732009769960,0.8497,3107.6,3107.4,3.21806]
[1732009770494,4.0677,3107.6,3107.1,3.21841]
[1732009770806,3.51524977,3107.5,3106.8,3.21867]
[1732009771004,4.65541244,3107.4,3106.9,3.21863]
[1732009771302,3.51535977,3107.3,3106.9,3.21863]
[1732009771506,3.51535977,3107.3,3106.6,3.21889]
[1732009771507,0.29712977,3107.2,3106.6,3.21889]
[1732009771686,4.41405977,3107.1,3106.6,3.21889]
[1732009771886,4.11693,3107.1,3106.6,3.21889]
[1732009772061,0.8985,3107.1,3106.6,3.21889]
[1732009772263,0.8985,3107.1,3106.8,3.21868]
[1732009773008,6.43572,3107.7,3107.1,3.21838]
[1732009773161,6.43572,3107.7,3106.9,0.4974]
[1732009773162,0.53485854,3107.6,3106.9,0.4974]
[1732009773366,0.29714438,3107.5,3107.0,6.43694]
[1732009773565,0.29714438,3107.4,3107.1,3.21841]
[1732009773789,0.29712979,3107.3,3107.1,3.21841]
[1732009773988,3.21796,3107.6,3107.1,3.21841]
[1732009774197,0.29713061,3107.5,3107.3,3.21822]
[1732009774512,0.8574,3107.8,3107.3,3.21822]
[1732009774676,0.29716372,3107.7,3107.5,3.21798]
[1732009774872,0.8574,3107.8,3107.6,3.21791]
[1732009775291,0.8574,3107.8,3107.5,3.218]
[1732009776413,0.8574,3107.8,3107.6,3.21789]
[1732009777834,0.8733,3108.3,3107.7,3.21781]
[1732009778036,0.29709629,3108.2,3107.3,0.4974]
[1732009778241,0.8733,3108.3,3108.0,3.21747]
[1732009779522,0.8733,3108.3,3107.8,0.4974]
[1732009779722,3.21558,3109.9,3107.8,0.4974]
[1732009779723,0.8999,3109.4,3107.8,0.4974]
[1732009779924,3.21646,3109.0,3108.5,3.21697]
[1732009780081,1.43446866,3108.9,3108.5,3.21697]
[1732009780286,0.29698505,3108.8,3108.5,3.21692]
[1732009780491,0.8999,3108.9,3108.6,3.21684]
[1732009780788,0.8999,3108.9,3108.7,3.21676]
[1732009781437,0.8753,3109.2,3108.7,3.21671]
[1732009781644,0.29673542,3109.1,3108.7,3.21671]
[1732009781809,0.29673542,3109.0,3108.7,3.21671]
[1732009782010,0.8753,3109.2,3108.7,3.21669]
[1732009782309,0.29673852,3109.1,3108.7,3.21669]
[1732009782722,0.29673852,3109.0,3108.7,3.21669]
[1732009782904,0.29673852,3109.1,3108.7,3.21669]
[1732009783106,0.29657039,3109.0,3108.7,3.21669]
[1732009783400,3.21636,3109.1,3108.5,3.21692]
[1732009783621,3.21636,3109.1,3108.5,6.43384]
[1732009783622,0.29642699,3109.0,3108.5,6.43384]
[1732009783935,3.21647,3109.0,3108.3,0.4974]
[1732009784141,0.8753,3108.8,3108.4,3.21707]
[1732009784441,3.21678,3108.7,3108.2,3.21726]
[1732009784589,3.21689,3108.6,3108.0,6.43488]
[1732009784788,3.21689,3108.6,3108.1,0.6479986]
[1732009784985,3.21698,3108.5,3108.1,0.6479986]
[1732009785241,3.21698,3108.5,3107.8,3.71507]
[1732009785242,3.21698,3108.5,3107.8,3.21762]
[1732009785449,0.8753,3108.4,3107.9,3.21758]
[1732009785750,0.8753,3108.4,3108.1,3.21737]
[1732009786095,3.21721,3108.3,3107.8,3.21769]
[1732009786566,0.8753,3108.4,3107.9,3.21753]
[1732009786698,4.09248,3108.4,3107.7,6.43549]
[1732009787143,0.8753,3108.4,3107.9,0.65919429]
[1732009787305,0.8753,3108.4,3107.9,3.87669429]
[1732009787515,0.8753,3108.4,3108.1,3.21729]
[1732009788044,4.09245,3108.4,3107.9,0.65919429]
[1732009788251,4.09245,3108.4,3107.9,3.87679429]
[1732009788455,0.8753,3108.4,3107.9,3.87679429]
[1732009789429,0.8753,3108.4,3108.0,3.21744]
[1732009790032,0.8753,3108.4,3108.1,3.21739]
[1732009790534,0.8753,3108.4,3108.2,3.21727]
[1732009791231,0.8799,3108.7,3108.5,3.21692]
[1732009791439,0.8799,3108.7,3108.3,3.21714]
[1732009791606,0.8799,3108.7,3108.4,3.21701]
[1732009792196,0.8782,3108.9,3108.6,3.21688]
[1732009792447,0.8782,3109.3,3108.8,3.21661]
[1732009792734,3.21631,3109.2,3108.6,3.21681]
[1732009793092,3.21631,3109.2,3108.5,0.4978]
[1732009793294,3.21631,3109.2,3108.5,3.2169]
[1732009793533,3.51279235,3109.1,3108.4,3.217]
[1732009793732,3.21644,3109.1,3108.4,3.217]
[1732009793897,0.9201,3109.0,3108.5,3.21692]
[1732009794342,0.9201,3109.0,3108.1,0.4978]
[1732009794513,0.9201,3109.0,3108.6,3.21681]
[1732009795297,0.9201,3109.0,3108.7,3.21671]
[1732009795842,1.29833,3109.3,3108.9,3.21657]
[1732009796345,4.51449,3109.3,3108.7,3.21672]
[1732009796510,4.51449,3109.3,3107.9,0.65919429]
[1732009796511,0.8889,3109.3,3109.0,3.21645]
[1732009797453,0.8889,3109.3,3108.8,3.21665]
[1732009797749,4.10511,3109.3,3108.8,3.21665]
[1732009798145,4.10511,3109.3,3108.7,3.21669]
[1732009798804,4.10511,3109.3,3108.6,3.71466]
[1732009798805,4.10511,3109.3,3108.5,3.21697]
[1732009799000,3.21645,3109.1,3108.5,3.21697]
[1732009799210,3.21636,3109.1,3108.5,3.21697]
[1732009799617,0.9251,3109.0,3108.5,3.21697]
[1732009799795,4.14165,3109.0,3108.5,3.21697]
[1732009800432,3.21677,3108.7,3108.2,3.0]
[1732009800631,3.21684,3108.7,3108.1,3.8627628]
[1732009800813,3.21703,3108.5,3108.1,0.6454228]
[1732009801140,4.14224,3108.4,3107.9,3.21757]
[1732009801549,3.2172,3108.3,3107.8,3.21768]
[1732009802244,4.14239,3108.2,3107.5,0.63660988]
[1732009802452,0.9251,3108.2,3107.4,3.21804]
[1732009802618,3.21782,3107.7,3107.2,3.21828]
[1732009802945,3.21795,3107.6,3107.0,3.21845]
[1732009803255,3.21795,3107.6,3107.1,3.21843]
[1732009803398,3.21805,3107.5,3106.9,3.2186]
[1732009803607,0.9251,3107.8,3106.7,0.64793426]
[1732009803802,0.29672416,3107.7,3107.2,3.21825]
[1732009804002,3.21788,3107.7,3107.1,3.0]
[1732009804420,3.21793,3107.6,3107.1,3.0]
[1732009805345,0.9251,3107.8,3107.1,3.0]
[1732009805517,0.9251,3107.8,3107.0,3.21852]
[1732009805518,3.21802,3107.5,3107.0,3.21852]
[1732009805843,3.21802,3107.5,3106.9,6.21863]
[1732009806216,3.21722,3108.3,3106.6,3.21892]
[1732009806217,0.8578,3107.4,3106.6,3.21892]
[1732009806419,3.21833,3107.2,3106.6,3.21892]
[1732009806647,0.8578,3107.0,3106.6,3.21892]
[1732009806849,0.8578,3107.0,3106.4,3.21911]
[1732009807552,0.8578,3107.0,3106.7,3.21884]
[1732009807754,0.8578,3107.0,3106.7,3.21882]
[1732009807966,0.8578,3107.0,3106.7,3.21878]
[1732009808462,0.8578,3107.0,3106.5,3.21899]
[1732009808463,0.8578,3107.0,3106.5,3.21896]
[1732009808675,0.9246,3107.3,3107.2,3.21825]
[1732009808965,0.9246,3107.9,3107.4,3.2181]
[1732009809329,0.41421,3107.8,3107.4,3.2181]
[1732009809669,4.14226,3107.9,3107.4,3.2181]
[1732009810168,0.921,3107.3,3106.8,3.21873]
[1732009810537,4.13924,3107.3,3106.8,3.21873]
[1732009810739,0.921,3107.3,3107.1,3.21834]
[1732009811253,0.921,3107.3,3107.2,3.21833]
[1732009811566,0.8905,3107.7,3107.3,3.21818]
[1732009812377,0.8905,3107.7,3107.4,3.21805]
[1732009812876,3.218,3107.6,3107.0,3.21846]
[1732009813572,0.8905,3107.7,3106.8,3.71653]
[1732009813573,3.21819,3107.4,3106.8,3.71653]
[1732009813725,3.21803,3107.5,3106.9,3.21863]
[1732009814258,3.21803,3107.5,3107.0,3.21853]
[1732009814576,4.10836,3107.7,3107.0,3.21853]
[1732009814758,0.8905,3107.7,3107.2,3.21826]
[1732009815364,4.10831,3107.7,3107.0,3.21851]
[1732009815573,4.10831,3107.7,3107.1,3.21843]
[1732009815574,3.21792,3107.6,3107.1,3.21843]
[1732009815743,0.8905,3107.7,3107.0,3.21851]
[1732009815951,3.21792,3107.6,3107.0,3.21851]
[1732009816190,3.21808,3107.5,3107.0,3.21846]
[1732009817085,0.85,3107.3,3106.8,3.21866]
[1732009818185,0.85,3107.3,3107.0,3.21846]
[1732009818545,0.85,3107.3,3107.1,3.21839]
[1732009818989,0.85,3107.3,3106.9,3.21854]
[1732009819156,0.85,3107.3,3106.7,3.21876]
[1732009819157,4.06825,3107.3,3106.7,3.21876]
[1732009819489,0.85,3107.3,3106.8,3.21868]
[1732009819689,0.85,3107.3,3106.3,0.4978]
[1732009819690,3.21854,3107.0,3106.4,3.21915]
[1732009819992,0.877,3107.2,3106.1,0.4978]
[1732009819993,0.877,3106.9,3106.5,3.21896]
[1732009821254,0.877,3106.9,3106.7,3.21876]
[1732009821455,3.08798287,3107.8,3106.9,3.21864]
[1732009821456,0.8479,3107.5,3106.9,3.21864]
[1732009821759,3.21824,3107.3,3106.8,3.21874]
[1732009822306,3.21815,3107.4,3106.8,3.21869]
[1732009822472,3.21815,3107.4,3106.8,6.43738]
[1732009822961,0.8479,3107.5,3106.8,3.21874]
[1732009823168,0.8479,3107.5,3107.4,3.21812]
[1732009823360,0.8479,3107.5,3107.3,3.2182]
[1732009823748,0.8479,3107.5,3107.1,3.21836]
[1732009824586,0.8479,3107.5,3107.2,3.21831]
[1732009824901,0.8919,3107.7,3106.9,0.55]
[1732009825105,0.8919,3107.9,3107.6,3.21784]
[1732009825548,0.8919,3107.9,3107.7,3.21776]
[1732009825751,0.8919,3107.9,3107.6,3.21784]
[1732009826895,0.8919,3107.9,3107.4,3.21805]
[1732009827046,0.8919,3107.9,3107.7,3.21778]
[1732009827486,0.8919,3107.9,3107.5,3.21792]
[1732009827690,0.8919,3107.9,3107.3,6.43632]
[1732009827888,3.21772,3107.8,3107.3,3.21815]
[1732009828090,0.8919,3107.9,3107.4,3.2181]
[1732009828091,4.10952,3107.9,3107.4,3.2181]
[1732009828306,3.21789,3107.7,3107.1,3.21836]
[1732009828484,0.8475,3107.6,3107.1,6.43672]
[1732009829002,4.06549,3107.6,3107.1,3.21836]
[1732009829178,3.21803,3107.5,3106.9,3.21862]
[1732009829379,4.06579,3107.3,3106.7,3.21881]
[1732009829593,4.06579,3107.3,3106.4,0.4975]
[1732009829594,3.21849,3107.1,3106.6,3.21894]
[1732009829951,0.29733188,3107.0,3106.6,3.21894]
[1732009830159,0.9042,3106.9,3106.5,3.21904]
[1732009830789,0.9042,3106.9,3106.5,6.43803]
[1732009831102,0.9042,3106.9,3106.5,3.21899]
[1732009831431,0.9042,3106.9,3106.3,3.21916]
[1732009831594,0.9042,3106.9,3106.4,3.21912]
[1732009832092,0.9042,3106.9,3106.5,3.21904]
[1732009832530,0.9042,3106.9,3106.3,6.43834]
[1732009832847,4.12285,3106.9,3106.4,3.21915]
[1732009833397,4.12285,3106.9,3106.3,3.21916]
[1732009833592,7.34157,3106.9,3106.3,3.21916]
[1732009834000,4.12285,3106.9,3106.4,3.21913]
[1732009834190,0.9042,3106.9,3106.1,6.43894]
[1732009834398,0.9042,3106.9,3106.6,3.21888]
[1732009836407,0.882857,3107.2,3106.6,3.21895]
[1732009836841,3.51563466,3107.1,3106.6,3.21895]
[1732009837009,3.2185,3107.1,3106.4,6.43822]
[1732009837347,3.21853,3107.0,3106.4,6.43822]
[1732009837635,4.07904,3106.9,3106.4,3.21907]
[1732009837947,4.0791,3106.9,3106.3,3.21918]
[1732009838156,4.88205887,3106.9,3106.3,3.21918]
[1732009838336,4.88205887,3106.9,3106.2,3.2193]
[1732009838508,4.88205887,3106.9,3106.4,3.21915]
[1732009838710,3.2188,3106.8,3106.2,3.21929]
[1732009839005,0.48820589,3106.8,3106.4,3.21915]
[1732009839211,8.10079887,3106.9,3106.4,3.21913]
[1732009839455,4.88205887,3106.9,3106.4,3.21913]
[1732009840248,0.29702068,3106.8,3106.4,3.21913]
[1732009840406,3.21877,3106.8,3106.2,3.2193]
[1732009840606,3.21877,3106.8,3106.2,3.21927]
[1732009840839,3.21886,3106.7,3106.2,3.21927]
[1732009841942,8.10077887,3106.9,3106.3,3.2192]
[1732009842252,3.51569322,3106.8,3106.3,3.2192]
[1732009842459,3.21875,3106.8,3106.3,3.2192]
[1732009843868,1.66335887,3106.9,3106.6,3.21889]
[1732009844161,0.8604,3106.9,3106.6,3.21889]
[1732009844357,7.2951,3107.1,3106.6,3.21886]
[1732009844525,4.4023047,3107.1,3106.6,3.21886]
[1732009844854,4.4023047,3107.1,3106.4,3.21909]
[1732009844855,3.51564929,3107.0,3106.4,3.21909]
[1732009845153,3.2186,3107.0,3106.5,3.21904]
[1732009846010,4.4023047,3107.1,3106.5,3.21904]
[1732009846311,3.51563065,3107.0,3106.5,3.21897]
[1732009846508,3.21855,3107.0,3106.5,3.21897]
[1732009847125,4.4023047,3107.1,3106.6,3.21887]
[1732009847321,0.29714435,3107.0,3106.6,3.21895]
[1732009847558,4.4023047,3107.1,3106.6,3.21895]
[1732009847810,4.4023047,3107.1,3106.5,3.21897]
[1732009847811,0.8581,3107.1,3106.7,3.21879]
[1732009848215,0.8581,3107.1,3106.3,0.4975]
[1732009848420,0.29716634,3107.0,3106.0,1.0475]
[1732009848646,0.8581,3107.1,3106.0,1.0475]
[1732009848647,3.21864,3106.9,3106.4,3.21914]
[1732009848855,3.21857,3107.0,3106.5,3.21899]
[1732009849055,0.897,3106.8,3106.3,3.2192]
[1732009849443,4.1158,3106.8,3106.3,3.2192]
[1732009850239,0.897,3106.8,3106.3,3.2192]
[1732009850489,0.897,3106.8,3106.5,3.21905]
[1732009850682,0.897,3106.8,3106.3,3.2192]
[1732009850683,0.897,3106.8,3106.4,3.21913]
[1732009850972,0.897,3106.8,3106.5,3.21905]
[1732009851538,0.897,3106.8,3106.4,3.21912]
[1732009851738,4.1158,3106.8,3106.2,3.21926]
[1732009851988,4.1158,3106.8,3105.1,4.70825306]
[1732009851989,0.9044,3106.4,3105.1,4.70825306]
[1732009852190,0.733447,3106.7,3104.9,3.22062]
[1732009852191,0.9044,3105.7,3104.9,3.22062]
[1732009852338,3.22005,3105.6,3104.9,3.22062]
[1732009852538,0.9044,3105.7,3104.7,0.4959]
[1732009852743,0.9044,3105.7,3104.8,3.22081]
[1732009852936,0.9044,3105.7,3105.2,3.22034]
[1732009855047,4.12429,3105.7,3105.0,6.44109]
[1732009855385,3.21999,3105.6,3105.0,3.22053]
[1732009855752,0.9044,3105.7,3105.2,3.2204]
[1732009855938,4.12429,3105.7,3105.0,6.44105]
[1732009856141,3.632449,3105.6,3105.0,3.22052]
[1732009856450,0.412429,3105.6,3105.0,3.22052]
[1732009857055,0.412429,3105.6,3105.0,3.22057]
[1732009857355,0.412429,3105.6,3105.0,3.22054]
[1732009857675,0.412429,3105.6,3105.1,3.22044]
[1732009858390,0.9235,3104.7,3103.7,0.4959]
[1732009858675,0.9235,3104.7,3104.2,3.22143]